Cogmind - Beta 16.1 *** ADVENTURER MODE // 2026.03.24 @ 10:35:15 Player: Arzee Result: Destroyed by X-67 Chaingunner with Heavy Machine Gun Performance ------------- Evolutions (3) 1500 Regions Visited (5) 1000 Robots Destroyed (59) 295 Value Destroyed (1881) 1881 Prototype IDs (4) 80 Alien Tech Used (0) 0 Bonus (500) 500 TOTAL SCORE: 5256 Bonus ------- Entered DSFs 500 Cogmind --------- Core Integrity 0/700 Matter 116/300 Energy 100/100 System Corruption 0% Temperature Cool (0) Movement Core (100) Ox1 Location -7/DSF Parts ------- > --- POWER (2) -------- (None) > --- PROPULSION (4) --- (None) > --- UTILITY (3) ------ System Shield > --- WEAPON (4) ------- Great Axe > --- INVENTORY (5) ---- Light Deuterium Engine Cryofiber Web Structural Scanner Peak State ------------ > --- POWER ------------ Improved Ion Engine Light Nuclear Core > --- PROPULSION ------- Aluminum Leg Carbon-fiber Leg Carbon-fiber Leg Titanium Leg > --- UTILITY ---------- Cryofiber Web System Shield System Shield > --- WEAPON ----------- Particle Gun Pulse Rifle Gauss Rifle Rocket Launcher > --- INVENTORY -------- Light Deuterium Engine Structural Scanner Reaction Control System Rocket Launcher [Rating: 35] Favorites ----------- Power Improved Ion Engine Engine Improved Ion Engine Power Core Light Nuclear Core Propulsion Aluminum Leg Treads Armored Treads Leg Aluminum Leg Hover Unit Hover Unit Utility Structural Scanner Device Structural Scanner Hackware System Shield Protection Light Armor Plating Weapon Heavy Assault Rifle Energy Gun Pulse Rifle Ballistic Gun Heavy Assault Rifle Launcher Rocket Launcher Slashing Weapon Great Axe Build | -11 -10 -9 -8 -7 -7 ------- Run | Yrd Mat Mat Mat Fac DSF Slots Evolved 6 | . . 2 2 2 . Power 1 | . . . . 1 . Propulsion 2 | . . 2 . . . Utility 1 | . . . 1 . . Weapon 2 | . . . 1 1 . Parts Attached 42 | 6 2 11 18 3 2 Power 5 | 1 . 3 . 1 . Engine 4 | 1 . 3 . . . Core 1 | . . . . 1 . Reactor . | . . . . . . Propulsion 15 | 2 . 4 9 . . Treads 3 | . . . 3 . . Leg 9 | 2 . 1 6 . . Wheel . | . . . . . . Hover 3 | . . 3 . . . Flight . | . . . . . . Utility 8 | 1 1 1 3 2 . Device 5 | 1 1 1 1 1 . Storage . | . . . . . . Processor . | . . . . . . Hackware 2 | . . . 1 1 . Protection 1 | . . . 1 . . Artifact . | . . . . . . Weapon 14 | 2 1 3 6 . 2 Energy Gun 2 | . . . 2 . . Energy Cannon . | . . . . . . Ballistic Gun 7 | 2 . 3 2 . . Ballistic Cannon . | . . . . . . Launcher 3 | . 1 . 2 . . Special Weapon . | . . . . . . Impact Weapon . | . . . . . . Slashing Weapon 2 | . . . . . 2 Piercing Weapon . | . . . . . . Special Melee Weapon . | . . . . . . Unidentified Prototypes 2 | . . 1 1 . . Parts Lost 17 | . . 2 1 . 14 Power 2 | . . . . . 2 Propulsion 5 | . . 1 . . 4 Utility 4 | . . 1 1 . 2 Weapon 6 | . . . . . 6 Highest Loss Streak 12 | . . 1 1 . 12 To Critical Strikes . | . . . . . . Average Backups 3 | . . 3 3 3 3 Power . | . . . . 1 1 Propulsion . | . . . . . . Utility 1 | . . 1 1 . 2 Weapon . | . . . 1 1 . Tool/Special . | . . . . . . Unused Backups 7 | . . 2 4 . 1 Power 3 | . . 1 1 . 1 Propulsion . | . . . . . . Utility 2 | . . . 2 . . Weapon 1 | . . . 1 . . Tool/Special 1 | . . 1 . . . Average Slot Usage (%) 83 | . 85 82 85 94 74 Engine 9 | . 14 11 8 7 5 Leg 22 | . 28 27 17 30 22 Hover 3 | . . 2 6 . . Device 14 | . 14 19 13 12 4 Hackware 5 | . . . 8 9 14 Protection 2 | . . . 4 . . Energy Gun 2 | . . . 3 15 4 Ballistic Gun 15 | . 23 15 18 5 4 Launcher 4 | . 4 6 2 7 7 Peak Build Rating 35 | 6 7 15 29 35 35 Average Rating 17 | 4 6 9 22 32 25 On Entrance 14 | . 6 7 14 27 35 Avg Prop Armor Cover (%) 12 | . . 17 4 . . Naked Turns . | . . . . . . Heaviest Build 28 | 9 11 15 21 28 27 Greatest Support 60 | 20 20 30 60 57 57 Greatest Overweight (x) 6 | . . 2 6 . 4 Average Overweight (x) . | . . . . . . Largest Inventory Capacity 5 | 5 5 5 5 5 5 Average Capacity 5 | 5 5 5 5 5 5 Most Carried 5 | 2 3 5 5 4 4 Average Carried 3 | . . 3 3 3 3 Final Capacity 5 | 5 5 5 5 5 5 Final Carried 4 | . 2 3 4 4 3 Class Distribution -------------------- 26% | Mutant 23% | Scavenger-Tank 16% | Scavenger-Skirmisher 15% | Scavenger-Mutant 13% | Hacker-Mutant Dominant Class ---------------- Mutant | -10/Materials Mutant | -9/Materials Scavenger-Tank | -8/Materials Scavenger-Skirmisher | -7/Factory Hacker-Mutant | -7/DSF Resources | -11 -10 -9 -8 -7 -7 ----------- Run | Yrd Mat Mat Mat Fac DSF Matter Collected 1567 | 272 18 442 813 . 22 Remotely 237 | 50 18 169 . . . Salvage Created 2118 | 98 30 677 1219 . 94 Parts 130 | 3 2 56 65 . 4 Haulers Intercepted 1 | . . . 1 . . Recyclers Shooed . | . . . . . . Parts Field Recycled . | . . . . . . Retrieved Matter . | . . . . . . Parts Self-Destructed . | . . . . . . Prevented . | . . . . . . Parts Restored . | . . . . . . Kills | -11 -10 -9 -8 -7 -7 ------- Run | Yrd Mat Mat Mat Fac DSF Combat Hostiles Destroyed 40 | . . 17 22 . 1 Melee 1 | . . . . . 1 Guns 23 | . . 11 12 . . AOE 16 | . . 6 10 . . Classes Destroyed 14 | 1 1 7 4 . 1 Worker 2 | . . 1 1 . . Builder 4 | . . 2 2 . . Tunneler 1 | . . . 1 . . Hauler 1 | . . . 1 . . Recycler 2 | 1 . . 1 . . Operator 2 | . . 2 . . . Watcher 7 | . 1 3 3 . . Swarmer 6 | . . 6 . . . Grunt 20 | . . 4 16 . . Brawler 2 | . . 1 1 . . Duelist 1 | . . . 1 . . Sentry 9 | . . 6 3 . . Hunter 1 | . . . 1 . . Heavy 1 | . . . . . 1 Best Kill Streak 7 | 1 1 7 5 . 1 Combat Bots Only 5 | . . 5 4 . 1 Max Kills in Single Turn 3 | 1 1 2 3 . 1 Gunslinging . | . . . . . . Exploded 2 | . . 2 2 . . Melee 1 | . . . . . 1 Uniques/NPCs Destroyed . | . . . . . . Combat | -11 -10 -9 -8 -7 -7 -------- Run | Yrd Mat Mat Mat Fac DSF Hostile Shots Fired 232 | . 2 70 65 . 95 Missed 69 | . . 19 24 . 26 Hits 163 | . 2 51 41 . 69 Melee 4 | . . . 4 . . Projectile 159 | . 2 51 37 . 69 Critical Strikes 5 | . . 1 3 . 1 Damage Taken 2619 | . 20 563 616 . 1420 Core 884 | . . 98 73 . 713 Absorbed by Shields . | . . . . . . Ignored by Resistances 740 | . 6 163 176 . 395 Regen/Repaired (Parts) 147 | . . 36 111 . . Core Remaining (%) 90 | 100 100 75 86 . . Volleys Fired 114 | 3 2 48 52 . 9 Largest 3 | 2 2 2 3 . 3 Hottest 124 | 40 40 53 124 . 94 Shots Fired 246 | 6 4 85 131 . 20 Gun 197 | 6 4 66 119 . 2 Cannon . | . . . . . . Launcher 49 | . . 19 12 . 18 Special . | . . . . . . Kinetic 170 | 6 4 66 92 . 2 Thermal 27 | . . . 27 . . Explosive 49 | . . 19 12 . 18 Electromagnetic . | . . . . . . Robot Hit Streak 26 | 3 1 11 26 . 13 Robot Miss Streak 4 | 2 2 3 4 . 2 Penetration Max 1 | . . . 1 . . Secondary Targets 3 | . . . 3 . . Max Gunslinging Chain 1 | . . . 1 . . Shots Hit Robots 187 | 3 1 60 101 . 22 Core Hits 115 | 1 1 41 57 . 15 Critical Kills . | . . . . . . Critical Parts Destroyed 3 | . . . 3 . . Critical Strikes 3 | . . . 3 . . Destroy 3 | . . . 3 . . Melee Attacks 7 | . . . . . 7 Impact . | . . . . . . Slashing 7 | . . . . . 7 Piercing . | . . . . . . Sneak Attacks . | . . . . . . Combat Hostiles . | . . . . . . Follow-up Attacks 1 | . . . . . 1 Damage Inflicted 4651 | 33 15 1334 2320 . 949 Guns 2219 | 33 15 711 1440 . 20 Cannons . | . . . . . . Explosions 2298 | . . 623 880 . 795 Melee 134 | . . . . . 134 Ramming . | . . . . . . Kinetic 1846 | 33 15 711 1067 . 20 Thermal 373 | . . . 373 . . Explosive 2298 | . . 623 880 . 795 Electromagnetic . | . . . . . . Impact . | . . . . . . Slashing 134 | . . . . . 134 Piercing . | . . . . . . Highest Corruption 5 | . . 5 . . . Average Corruption 5 | . . 5 . . . Corruption Purged . | . . . . . . Corruption Blocked . | . . . . . . Effects 2 | . . 2 . . . Matter Fused 1 | . . 1 . . . Heat Flow Errors 1 | . . 1 . . . Overload Shots . | . . . . . . Overflow Damage 13 | . . 13 . . . Projectiles . | . . . . . . Explosions 13 | . . 13 . . . Melee . | . . . . . . Knockbacks . | . . . . . . Impact . | . . . . . . Kinetic . | . . . . . . Secondary . | . . . . . . Self-Inflicted Damage 114 | . . 41 73 . . Shots 6 | . . 3 3 . . Rammed . | . . . . . . Targets Rammed . | . . . . . . Kicked . | . . . . . . Crushed . | . . . . . . Highest Temperature 332 | . . 276 332 . . Average Temperature 73 | . . 63 75 . . Received Heat Transfer 519 | . 15 189 315 . . Siege Activations . | . . . . . . Martial Activations . | . . . . . . Shielding Activations . | . . . . . . Robots Disrupted . | . . . . . . Combat Hostiles . | . . . . . . Robots Corrupted . | . . . . . . Combat Hostiles . | . . . . . . Parts Fried . | . . . . . . Impact Corruptions . | . . . . . . Robots Melted . | . . . . . . Combat Hostiles . | . . . . . . Parts Melted . | . . . . . . Heat Transferred 814 | . . . 814 . . Parts Sabotaged . | . . . . . . Parts Stolen . | . . . . . . Parts Stripped . | . . . . . . Power Chain Reactions . | . . . . . . Alert | -11 -10 -9 -8 -7 -7 ------- Run | Yrd Mat Mat Mat Fac DSF Maximum Alert Level 1 | . . 1 1 . . Low Security (%) 76 | 100 100 49 82 100 100 Level 1 23 | . . 50 17 . . Level 2 . | . . . . . . Level 3 . | . . . . . . Level 4 . | . . . . . . Level 5 . | . . . . . . High Security . | . . . . . . Max Security . | . . . . . . Peak Influence 384 | 5 7 368 384 141 99 Initial 141 | . . . 122 141 56 Average 122 | 1 . 208 107 116 51 Influence Increases 1489 | 5 7 679 699 . 99 Destroy 0b10 Robot/C 800 | . . 340 440 . 20 Destroy 0b10 Robot/NC 115 | 5 5 40 45 . 20 Destroy Leader 216 | . 2 116 98 . . Successful Hack 9 | . . 7 2 . . Disable Machine 54 | . . 18 36 . . Destroy Structure 220 | . . 113 78 . 29 Lose Combat Pursuer 75 | . . 45 . . 30 Influence Decreases 1474 | 5 7 338 676 273 175 Entered New Map 477 | . . . 219 223 35 Time Decay 831 | 5 7 318 451 50 . Lost Part 166 | . . 20 6 . 140 Squads Dispatched 6 | . . 2 2 . 2 Investigation 2 | . . 1 1 . . Extermination . | . . . . . . Reinforcement 3 | . . 1 . . 2 Assault . | . . . . . . Garrison 1 | . . . 1 . . Intercept . | . . . . . . Searches Triggered . | . . . . . . Construction Impeded . | . . . . . . Haulers Reinforced . | . . . . . . Active Scanning Responses . | . . . . . . Cargo Convoy Interrupts . | . . . . . . Stealth | -11 -10 -9 -8 -7 -7 --------- Run | Yrd Mat Mat Mat Fac DSF Distress Signals 1 | . . . 1 . . Communications Jammed . | . . . . . . Distress Signals . | . . . . . . Times Spotted 61 | . 3 23 29 . 6 Peak Tracking Total 5 | . 2 5 5 . 4 Tactical Retreats 4 | . . 2 . . 2 Traps | -11 -10 -9 -8 -7 -7 ------- Run | Yrd Mat Mat Mat Fac DSF Traps Triggered . | . . . . . . Indirectly . | . . . . . . Trap Hack Attempts . | . . . . . . Triggered . | . . . . . . Disarmed . | . . . . . . Reprogrammed . | . . . . . . Reused . | . . . . . . Traps Extracted . | . . . . . . Installed . | . . . . . . Triggered . | . . . . . . Machines | -11 -10 -9 -8 -7 -7 ---------- Run | Yrd Mat Mat Mat Fac DSF Machines Disabled 6 | . . 2 4 . . Max in Single Turn 1 | . . 1 1 . . Machines Repaired . | . . . . . . Machines Dismantled . | . . . . . . Machines Sabotaged . | . . . . . . Overloaded Fab Kills . | . . . . . . Hacking | -11 -10 -9 -8 -7 -7 --------- Run | Yrd Mat Mat Mat Fac DSF Machines Accessed 12 | . . 4 7 1 . Terminals 9 | . . 2 6 1 . Fabricators . | . . . . . . Repair Stations 2 | . . 1 1 . . Recycling Units . | . . . . . . Scanalyzers 1 | . . 1 . . . Garrison Access . | . . . . . . Total Hacks 27 | . . 9 16 2 . Successful 20 | . . 7 12 1 . Failed 7 | . . 2 4 1 . Catastrophic 1 | . . . 1 . . Database Lockouts . | . . . . . . Manual . | . . . . . . Terminals 17 | . . 3 12 2 . Fabricators . | . . . . . . Repair Stations 6 | . . 2 4 . . Recycling Units . | . . . . . . Scanalyzers 4 | . . 4 . . . Garrison Access . | . . . . . . Terminal Hacks 12 | . . 3 8 1 . Record 6 | . . . 6 . . Robot Analysis 1 | . . . 1 . . Prototype ID Bank 1 | . . . 1 . . Open DSF 1 | . . . . 1 . Alert Level 2 | . . 2 . . . Investigation Status 1 | . . 1 . . . Fabricator Hacks . | . . . . . . Repair Station Hacks 6 | . . 2 4 . . Scan Component 3 | . . 1 2 . . Repair 3 | . . 1 2 . . Recycling Unit Hacks . | . . . . . . Scanalyzer 2 | . . 2 . . . Insert Component 1 | . . 1 . . . Analyze 1 | . . 1 . . . Garrison Access Hacks . | . . . . . . Unauthorized Hacks . | . . . . . . Terminals . | . . . . . . Fabricators . | . . . . . . Repair Stations . | . . . . . . Recycling Units . | . . . . . . Scanalyzers . | . . . . . . Garrison Access . | . . . . . . Data Cores Recovered 2 | . . 2 . . . Used . | . . . . . . Hacking Detections 8 | . . 4 4 . . Full Trace Events 2 | . . 1 1 . . Feedback Events . | . . . . . . Feedback Blocked . | . . . . . . Robot Schematics Acquired . | . . . . . . Robots Built . | . . . . . . Authchips . | . . . . . . Time . | . . . . . . Total Robot Build Rating . | . . . . . . Part Schematics Acquired 1 | . . 1 . . . Parts Built . | . . . . . . Authchips . | . . . . . . Time . | . . . . . . Total Part Build Rating . | . . . . . . Part Studies Acquired . | . . . . . . Parts Repaired 3 | . . 1 2 . . Time 90 | . . 26 64 . . Parts Recycled . | . . . . . . Recycled Matter . | . . . . . . Retrieved Matter . | . . . . . . Retrieved Components . | . . . . . . Parts Scanalyzed 1 | . . 1 . . . Part Schematics Acquired 1 | . . 1 . . . Parts Damaged . | . . . . . . Bothacking | -11 -10 -9 -8 -7 -7 ------------ Run | Yrd Mat Mat Mat Fac DSF Used RIF Installer . | . . . . . . Robots Hacked . | . . . . . . Non-combat . | . . . . . . Combat . | . . . . . . Robot Hacks Applied . | . . . . . . Relay Couplers Released . | . . . . . . Fabnet Peak Effective % . | . . . . . . Robots Rewired . | . . . . . . Allies Hacked . | . . . . . . Hacks Repelled . | . . . . . . Allies | -11 -10 -9 -8 -7 -7 -------- Run | Yrd Mat Mat Mat Fac DSF Total Allies . | . . . . . . Largest Group . | . . . . . . Highest-Rated Group . | . . . . . . Highest-Rated Ally . | . . . . . . Total Orders . | . . . . . . Ally Attacks . | . . . . . . Total Damage . | . . . . . . Kills . | . . . . . . Allies Corrupted . | . . . . . . Allies Melted . | . . . . . . Intel | -11 -10 -9 -8 -7 -7 ------- Run | Yrd Mat Mat Mat Fac DSF Active Infowar (turns) 1825 | . 9 682 1061 73 . Terrain 328 | . . 154 174 . . Structural 1825 | . 9 682 1061 73 . Robot Analysis Total 1 | . . . 1 . . Derelict Logs Recovered . | . . . . . . Drone Launches . | . . . . . . Drone Recoveries . | . . . . . . Exploration | -11 -10 -9 -8 -7 -7 ------------- Run | Yrd Mat Mat Mat Fac DSF Turns Passed 2265 | 74 164 682 1061 115 169 Spaces Moved 1455 | 49 128 402 692 89 95 Core 20 | 7 . . 2 . 11 Treads 6 | . . . 6 . . Legs 1193 | 42 128 356 494 89 84 Wheels . | . . . . . . Hover 236 | . . 46 190 . . Flight . | . . . . . . Fastest Speed 50 | 50 120 52 52 122 122 Average Speed 115 | 110 120 119 110 122 126 Slowest Speed 350 | 120 120 210 350 122 250 Overloaded Moves . | . . . . . . Propulsion Burnouts . | . . . . . . Robots Hopped . | . . . . . . Potential Cave-ins . | . . . . . . Cave-ins Triggered . | . . . . . . Exploration Rate (%) 32 | 3 35 44 51 4 56 Regions Visited 5 Branch Regions . Pre-discovered Areas . | . . . . . . Known Exits Taken 1 | . . . . 1 . Unknown Exits Taken 4 | 1 1 1 1 . . Scrap Searched . | . . . . . . Spaces Dug . | . . . . . . Terrain Destroyed 239 | . . 113 85 . 41 Melee . | . . . . . . Projectile 3 | . . . 3 . . AOE 236 | . . 113 82 . 41 Terrain Rammed . | . . . . . . Walls Destroyed . | . . . . . . Machines Disabled . | . . . . . . Actions | -11 -10 -9 -8 -7 -7 --------- Run | Yrd Mat Mat Mat Fac DSF Total 1803 | 63 134 518 879 94 115 Wait 95 | . . 28 67 . . Move 1449 | 48 127 401 691 88 94 Hop . | . . . . . . Pick Up 48 | 6 3 14 21 2 2 Fast Attach 7 | . . 1 6 . . Attach 30 | 6 1 5 13 2 3 Detach 1 | . . . 1 . . Swap 21 | . 1 10 8 2 . Drop 31 | . . 11 20 . . Fire 114 | 3 2 48 52 . 9 Melee 6 | . . . . . 6 Ram . | . . . . . . Kick . | . . . . . . Crush . | . . . . . . Escape Stasis 1 | . . . . . 1 Rewire . | . . . . . . Trap . | . . . . . . Miscellaneous . | . . . . . . Route ------- -11/Scrapyard -10/Materials -9/Materials -8/Materials -7/Factory -7/DSF History --------- Turn | Location | Event 33 | -11/Scrapyard | Discovered new exit (range 14) 75 | -11/Scrapyard | Entered Materials 235 | -10/Materials | Discovered new exit (range 3) 239 | -10/Materials | Entered another Materials area 239 | -9/Materials | Evolved 2 slots: Propulsion x2 308 | -9/Materials | Build established: Mutant 525 | -9/Materials | Repaired Aluminum Leg 908 | -9/Materials | Discovered new exit (range 10) 921 | -9/Materials | Entered another Materials area 921 | -8/Materials | Evolved 2 slots: Utility x1, Weapon x1 975 | -8/Materials | Repaired Hvy. Assault Rifle 1009 | -8/Materials | Repaired Imp. Ion Engine 1373 | -8/Materials | Build established: Scavenger-Tank 1791 | -8/Materials | Garrison activated, responded to threat 1903 | -8/Materials | Discovered new exit (range 16) 1982 | -8/Materials | Entered Factory 1982 | -7/Factory | Evolved 2 slots: Power x1, Weapon x1 1988 | -7/Factory | Build established: Scavenger-Skirmisher 2097 | -7/Factory | Identified exit to DSF 2097 | -7/Factory | Entered DSF 2128 | -7/DSF | Additional patrols routed to DSF 2250 | -7/DSF | Core integrity fell below 50% 2262 | -7/DSF | Core integrity fell below 20% 2266 | -7/DSF | Destroyed by X-67 Chaingunner with Heavy Machine Gun Last Messages --------------- (Secondary inactive melee weapons have a chance to conduct follow-up attacks, see the manual.) Titanium Leg destroyed. Imp. Ion Engine destroyed. System Shield destroyed. Great Axe follow-up attack on H-61 Shepherd. Slug penetrates Wall. Penetrated by Slug. Knocked back. Slug penetrates Wall. Knocked back. Slug penetrates Wall. H-61 Shepherd destroyed. Slug penetrates Wall. Wall collapses. Penetrated by Slug. Great Axe destroyed. Penetrated by Slug. [Achievement: 5k Club] Map ----- +----------------------------------------------------+ | #??????????????????????????????????????? | | "#??????????????????????????""?????????? | | "#?????????????????????????#"#?????????? | | "##???????#########???????##"####??????? | | ""#########!! #########"""""#??????? | | ""##!!#!!!#!! # #!!##"""""#??????? | | ^ ""##"????? | | """""????? | | ## # ### % ###!!!#!!## ""###????? | | ### # #?# #?#!!!#!!### ###??????? | | #?########[[ ]]########## ##???????? | | !????????#[[ ]]#??????#!! !#???????? | | !????????#[[ ]]#??????#!! !#???????? | | ##???????### ###??????### ##???????? | | ??????????] !????????# #???????? | | ??????????] !!???????# #???????? | | ?????????]] !!#??????# #???????? | | #?????????## # ##?###### ###??????? | | #?????????? # ***# ## [[#??#???? | | ??????????? # ***# ## [[## #???? | | ??????????? % %==" #????? | | ??????????? % ==##?????? | | ???????????? =="#?????? | | ???????????? !!!## !!##?????? | | ???????????? !h;# !!#??????? | | ????????????? ###@;# ###??????? | | ????????????? ! ????## xx #???????? | | ?????????????? !!???????# #???????? | | ?????????????? ?????????# % ;#??????? | | ?????????????????????????###% ## #?????? | | ?????????????????????????# #?#?????? | | ?????????????????????????# ^^ #???????? | | ?????????????????????????### ^##???????? | | ???????????????????????????# #????????? | | ??????????????????????????# ""???????? | | ????????????????????????? """??????? | | ???????????????????????? ""##?????? | | ???????????????????????]]##"%"""#??????? | | ??????????????????????###?#"""""#??????? | | ??????????????????????????##"###???????? | | ????????????????????????????"??????????? | | ???????????????????????????????????????? | | ???????????????????????????????????????? | | ???????????????????????????????????????? | | ???????????????????????????????????????? | | ???????????????????????????????????????? | | ???????????????????????????????????????? | | | | | | | +----------------------------------------------------+ Best States ------------- Heat Dissipation 34 Energy Generation 21 Energy Capacity 325 Matter Stores 300 Matter Capacity 300 Sight Range 16 Terrain Scan Range 16 Terrain Scan Density 10 Base Temperature (-) 100 Armor Coverage 150 Resistance: KI 20 Resistance: TH 20 Resistance: EX 20 Resistance: EM 20 Resistance: I 20 Resistance: S 20 Resistance: P 20 Evasion (%) 63 Recoil Reduction 2 Offensive Hacking 10 Defensive Hacking 20 Item Schematics ----------------- Hvy. Ion Engine | -9/Materials | Scanalyzed Robot Schematics ------------------ None Fabricated ------------ Nothing Repaired ---------- Aluminum Leg | 60% | -9/Materials Hvy. Assault Rifle | 37% | -8/Materials Imp. Ion Engine | 44% | -8/Materials Studied --------- None Alien Tech Used ----------------- None Achievements -------------- 5k Club Heavy Suspicion Please Form A Line Remodeling Troublemaker Use The Force Challenges ------------ None Game ------ Seed ChainPersonalMultitool Manual? 0 Play Time 00:49:34 Cumulative 1.0 hours Start 2026.03.24 @ 09:45:17 End 2026.03.24 @ 10:35:15 Sessions 1 Manual Loads 0 Difficulty Adventurer Special Mode None Game No. 4 Rogue 0 Adventurer 4 Explorer 0 Win Type - Total 0 Types 0/0/0/0/0/0/0/0/0/0 Lore% 1 Gallery% 4 Achievement% 6 Wizard Run 0 Options --------- Layout 1 ASCII 0 Keyboard 0 Movement Mouse Keybinds 0 Fullscreen 1 Font 32/Tamsyn Map View 50x35 Zoom Use 0% Tactical HUD 0 Map Filters NONE Filters NONE Steam 1 RUN: 2b53c1ff-0218-4cc6-ba63-3e84a007f603